[Event "Titled Tuesday Blitz May 30 Late 2023"]
[White "Manu_ChessExcelsior"]
[Black "MariusBieliauskas"]
[WhiteElo "2073"]
[BlackElo "2470"]
[Result "1/2-1/2"]
[Round "06"]
[TimeControl "180+2"]
[Date "2023.05.31"]
[WhiteClock "0:00:26"]
[BlackClock "0:00:38"]

1. e4 {[%clk 0:03:00]}  c5 {[%clk 0:02:59]} 2. Nf3 {[%clk 0:03:00]}  d6 {[%clk 0:02:59]} 3. Bb5+ {[%clk 0:03:00]}  Bd7 {[%clk 0:02:59]} 4. Bxd7+ {[%clk 0:03:00]}  Qxd7 {[%clk 0:02:59]} 5. O-O {[%clk 0:03:01]}  Nc6 {[%clk 0:02:59]} 6. Re1 {[%clk 0:03:02]}  Nf6 {[%clk 0:02:57]} 7. c3 {[%clk 0:03:02]}  e6 {[%clk 0:02:57]} 8. d4 {[%clk 0:03:01]}  cxd4 {[%clk 0:02:56]} 9. cxd4 {[%clk 0:03:02]}  d5 {[%clk 0:02:56]} 10. e5 {[%clk 0:03:02]}  Ne4 {[%clk 0:02:56]} 11. Nbd2 {[%clk 0:03:02]}  Nxd2 {[%clk 0:02:56]} 12. Bxd2 {[%clk 0:03:01]}  Be7 {[%clk 0:02:56]} 13. Rc1 {[%clk 0:02:59]}  O-O {[%clk 0:02:56]} 14. a3 {[%clk 0:02:59]}  Rac8 {[%clk 0:02:54]} 15. Rc3 {[%clk 0:02:58]}  Bd8 {[%clk 0:02:49]} 16. Rd3 {[%clk 0:02:58]}  Ne7 {[%clk 0:02:49]} 17. Bc3 {[%clk 0:02:58]}  b5 {[%clk 0:02:42]} 18. Ng5 {[%clk 0:02:42]}  Nf5 {[%clk 0:02:38]} 19. Qh5 {[%clk 0:02:26]}  Bxg5 {[%clk 0:02:27]} 20. Qxg5 {[%clk 0:02:24]}  Qe7 {[%clk 0:02:26]} 21. Qf4 {[%clk 0:02:07]}  Qh4 {[%clk 0:02:21]} 22. Qd2 {[%clk 0:01:56]}  Rc4 {[%clk 0:02:00]} 23. Rh3 {[%clk 0:01:32]}  Qg4 {[%clk 0:01:59]} 24. f3 {[%clk 0:01:32]}  Qg6 {[%clk 0:01:58]} 25. Kh1 {[%clk 0:01:24]}  f6 {[%clk 0:01:51]} 26. g4 {[%clk 0:01:17]}  Ne7 {[%clk 0:01:47]} 27. Bb4 {[%clk 0:01:09]}  Rc7 {[%clk 0:01:35]} 28. Bd6 {[%clk 0:01:07]}  Rd7 {[%clk 0:01:34]} 29. Qe2 {[%clk 0:01:01]}  fxe5 {[%clk 0:01:31]} 30. Bxe5 {[%clk 0:00:55]}  a6 {[%clk 0:01:26]} 31. f4 {[%clk 0:00:48]}  Nc6 {[%clk 0:01:19]} 32. Rc3 {[%clk 0:00:44]}  Nxe5 {[%clk 0:01:15]} 33. Qxe5 {[%clk 0:00:14]}  Qxg4 {[%clk 0:01:15]} 34. Qxe6+ {[%clk 0:00:15]}  Qxe6 {[%clk 0:01:14]} 35. Rxe6 {[%clk 0:00:16]}  Rxf4 {[%clk 0:01:14]} 36. Rxa6 {[%clk 0:00:16]}  Rxd4 {[%clk 0:01:10]} 37. Rf3 {[%clk 0:00:13]}  g5 {[%clk 0:01:01]} 38. Rb6 {[%clk 0:00:13]}  Rd1+ {[%clk 0:00:59]} 39. Kg2 {[%clk 0:00:13]}  Rd2+ {[%clk 0:00:59]} 40. Rf2 {[%clk 0:00:12]}  Rxf2+ {[%clk 0:00:57]} 41. Kxf2 {[%clk 0:00:13]}  Kf7 {[%clk 0:00:49]} 42. Rxb5 {[%clk 0:00:13]}  Ke6 {[%clk 0:00:49]} 43. Ke3 {[%clk 0:00:14]}  Ke5 {[%clk 0:00:47]} 44. b4 {[%clk 0:00:14]}  Ra7 {[%clk 0:00:45]} 45. Ra5 {[%clk 0:00:13]}  Rxa5 {[%clk 0:00:41]} 46. bxa5 {[%clk 0:00:13]}  Kd6 {[%clk 0:00:40]} 47. Kd4 {[%clk 0:00:13]}  h5 {[%clk 0:00:38]} 48. a6 {[%clk 0:00:13]}  Kc6 {[%clk 0:00:38]} 49. a7 {[%clk 0:00:14]}  Kb7 {[%clk 0:00:38]} 50. Kxd5 {[%clk 0:00:14]}  g4 {[%clk 0:00:36]} 51. Ke4 {[%clk 0:00:14]}  h4 {[%clk 0:00:36]} 52. Kf4 {[%clk 0:00:13]}  g3 {[%clk 0:00:37]} 53. hxg3 {[%clk 0:00:12]}  hxg3 {[%clk 0:00:36]} 54. Kxg3 {[%clk 0:00:13]}  Kxa7 {[%clk 0:00:36]} 55. Kf3 {[%clk 0:00:14]}  Ka8 {[%clk 0:00:36]} 56. Ke3 {[%clk 0:00:15]}  Kb8 {[%clk 0:00:36]} 57. Kd3 {[%clk 0:00:16]}  Ka8 {[%clk 0:00:36]} 58. Kc3 {[%clk 0:00:17]}  Kb8 {[%clk 0:00:37]} 59. Kb4 {[%clk 0:00:17]}  Ka8 {[%clk 0:00:37]} 60. a4 {[%clk 0:00:18]}  Kb8 {[%clk 0:00:38]} 61. a5 {[%clk 0:00:19]}  Ka8 {[%clk 0:00:38]} 62. Kb5 {[%clk 0:00:20]}  Kb8 {[%clk 0:00:38]} 63. a6 {[%clk 0:00:21]}  Ka7 {[%clk 0:00:37]} 64. Ka5 {[%clk 0:00:21]}  Kb8 {[%clk 0:00:37]} 65. Kb6 {[%clk 0:00:22]}  Ka8 {[%clk 0:00:37]} 66. Kb5 {[%clk 0:00:22]}  Ka7 {[%clk 0:00:38]} 67. Ka5 {[%clk 0:00:23]}  Ka8 {[%clk 0:00:38]} 68. Kb6 {[%clk 0:00:24]}  Kb8 {[%clk 0:00:38]} 69. a7+ {[%clk 0:00:25]}  Ka8 {[%clk 0:00:38]} 70. Kb5 {[%clk 0:00:26]}  Kxa7 {[%clk 0:00:38]} 1/2-1/2


[Site "https://www.chess.com"]

[Event "Titled Tuesday Blitz May 30 Late 2023"]
[White "egorchess95"]
[Black "Pein, Jonathan"]
[BlackFideId "417092"]
[WhiteElo "2659"]
[BlackElo "2151"]
[Result "1-0"]
[Round "06"]
[TimeControl "180+2"]
[Date "2023.05.31"]
[WhiteClock "0:00:15"]
[BlackClock "0:00:28"]

1. e4 {[%clk 0:03:00]}  e5 {[%clk 0:02:59]} 2. Nf3 {[%clk 0:03:00]}  d6 {[%clk 0:03:00]} 3. d4 {[%clk 0:02:59]}  exd4 {[%clk 0:03:01]} 4. Nxd4 {[%clk 0:03:00]}  Nf6 {[%clk 0:03:02]} 5. Nc3 {[%clk 0:03:00]}  g6 {[%clk 0:03:03]} 6. Bc4 {[%clk 0:03:00]}  Bg7 {[%clk 0:03:04]} 7. O-O {[%clk 0:03:01]}  O-O {[%clk 0:03:04]} 8. f4 {[%clk 0:03:01]}  Re8 {[%clk 0:03:04]} 9. Nf3 {[%clk 0:02:54]}  c6 {[%clk 0:02:48]} 10. e5 {[%clk 0:02:53]}  Qb6+ {[%clk 0:02:40]} 11. Kh1 {[%clk 0:02:52]}  Ng4 {[%clk 0:02:40]} 12. Qe2 {[%clk 0:02:01]}  d5 {[%clk 0:02:22]} 13. Bd3 {[%clk 0:02:01]}  Na6 {[%clk 0:02:16]} 14. Ng5 {[%clk 0:01:46]}  Nc5 {[%clk 0:02:09]} 15. e6 {[%clk 0:01:42]}  f5 {[%clk 0:01:58]} 16. h3 {[%clk 0:01:23]}  Nf6 {[%clk 0:01:55]} 17. Be3 {[%clk 0:01:23]}  Qxb2 {[%clk 0:01:27]} 18. Nxd5 {[%clk 0:00:58]}  Nxd5 {[%clk 0:01:20]} 19. Bxc5 {[%clk 0:00:57]}  Qxa1 {[%clk 0:01:07]} 20. Rxa1 {[%clk 0:00:57]}  Bxa1 {[%clk 0:01:08]} 21. Bc4 {[%clk 0:00:33]}  Nxf4 {[%clk 0:01:08]} 22. e7+ {[%clk 0:00:31]}  Kg7 {[%clk 0:01:04]} 23. Qe3 {[%clk 0:00:21]}  Nd5 {[%clk 0:01:01]} 24. Bd4+ {[%clk 0:00:22]}  Bxd4 {[%clk 0:01:01]} 25. Qxd4+ {[%clk 0:00:23]}  Nf6 {[%clk 0:00:55]} 26. Nxh7 {[%clk 0:00:23]}  Kxh7 {[%clk 0:00:53]} 27. Qxf6 {[%clk 0:00:23]}  Bd7 {[%clk 0:00:53]} 28. Bf7 {[%clk 0:00:23]}  Rg8 {[%clk 0:00:51]} 29. Bxg8+ {[%clk 0:00:23]}  Rxg8 {[%clk 0:00:52]} 30. Qd6 {[%clk 0:00:24]}  Be8 {[%clk 0:00:51]} 31. Qb8 {[%clk 0:00:24]}  b5 {[%clk 0:00:50]} 32. Qxa7 {[%clk 0:00:24]}  Kg7 {[%clk 0:00:49]} 33. Qc7 {[%clk 0:00:23]}  Kf7 {[%clk 0:00:50]} 34. Qd6 {[%clk 0:00:22]}  g5 {[%clk 0:00:47]} 35. Qe5 {[%clk 0:00:20]}  Bd7 {[%clk 0:00:41]} 36. Qc7 {[%clk 0:00:19]}  Kxe7 {[%clk 0:00:39]} 37. Qe5+ {[%clk 0:00:20]}  Be6 {[%clk 0:00:38]} 38. Qc5+ {[%clk 0:00:19]}  Kd7 {[%clk 0:00:36]} 39. a3 {[%clk 0:00:20]}  Bd5 {[%clk 0:00:34]} 40. Qa7+ {[%clk 0:00:20]}  Kd6 {[%clk 0:00:32]} 41. Kg1 {[%clk 0:00:20]}  g4 {[%clk 0:00:31]} 42. hxg4 {[%clk 0:00:17]}  Rxg4 {[%clk 0:00:31]} 43. Qb8+ {[%clk 0:00:17]}  Kc5 {[%clk 0:00:28]} 44. Qf8+ {[%clk 0:00:15]}  Kc4 {[%clk 0:00:28]} 45. Qb4# {[%clk 0:00:15]} 1-0


[Site "https://www.chess.com"]

[Event "Titled Tuesday Blitz May 30 Late 2023"]
[White "Qiao, Cindy"]
[Black "Iskusnyh, Sergei"]
[WhiteFideId "2620243"]
[BlackFideId "4120027"]
[WhiteElo "1777"]
[BlackElo "2492"]
[Result "1-0"]
[Round "06"]
[TimeControl "180+2"]
[Date "2023.05.31"]
[WhiteClock "0:01:04"]
[BlackClock "0:00:07"]

1. d4 {[%clk 0:03:00]}  Nf6 {[%clk 0:02:58]} 2. Nf3 {[%clk 0:03:00]}  g6 {[%clk 0:02:58]} 3. Bf4 {[%clk 0:03:01]}  Bg7 {[%clk 0:02:57]} 4. Nc3 {[%clk 0:03:00]}  d5 {[%clk 0:02:57]} 5. Nb5 {[%clk 0:03:00]}  Na6 {[%clk 0:02:55]} 6. e3 {[%clk 0:03:00]}  O-O {[%clk 0:02:55]} 7. h3 {[%clk 0:02:59]}  Ne4 {[%clk 0:02:42]} 8. Bd3 {[%clk 0:02:59]}  c6 {[%clk 0:02:42]} 9. Nc3 {[%clk 0:02:55]}  Nxc3 {[%clk 0:02:29]} 10. bxc3 {[%clk 0:02:56]}  Qa5 {[%clk 0:02:25]} 11. Qd2 {[%clk 0:02:50]}  c5 {[%clk 0:02:25]} 12. O-O {[%clk 0:02:42]}  Bd7 {[%clk 0:02:13]} 13. Rfb1 {[%clk 0:02:34]}  Bc6 {[%clk 0:02:08]} 14. Ne5 {[%clk 0:02:32]}  cxd4 {[%clk 0:01:57]} 15. exd4 {[%clk 0:02:29]}  Rac8 {[%clk 0:01:47]} 16. Nxc6 {[%clk 0:02:28]}  bxc6 {[%clk 0:01:42]} 17. Rb7 {[%clk 0:02:27]}  e5 {[%clk 0:01:24]} 18. Rxa7 {[%clk 0:02:15]}  exf4 {[%clk 0:01:23]} 19. Rxa6 {[%clk 0:02:15]}  Qc7 {[%clk 0:01:21]} 20. Rb1 {[%clk 0:02:13]}  Rce8 {[%clk 0:01:14]} 21. Rab6 {[%clk 0:02:11]}  c5 {[%clk 0:01:08]} 22. Rb7 {[%clk 0:02:04]}  Qc8 {[%clk 0:01:00]} 23. Be2 {[%clk 0:01:52]}  cxd4 {[%clk 0:00:55]} 24. cxd4 {[%clk 0:01:53]}  Bxd4 {[%clk 0:00:40]} 25. Qxd4 {[%clk 0:01:48]}  Rxe2 {[%clk 0:00:40]} 26. Qxd5 {[%clk 0:01:42]}  Qxc2 {[%clk 0:00:38]} 27. Qf3 {[%clk 0:01:39]}  Qxa2 {[%clk 0:00:26]} 28. Qxf4 {[%clk 0:01:38]}  Re6 {[%clk 0:00:23]} 29. Rb8 {[%clk 0:01:33]}  Rxb8 {[%clk 0:00:21]} 30. Rxb8+ {[%clk 0:01:34]}  Kg7 {[%clk 0:00:21]} 31. Qd4+ {[%clk 0:01:34]}  Kh6 {[%clk 0:00:15]} 32. Rg8 {[%clk 0:01:21]}  Qb1+ {[%clk 0:00:12]} 33. Kh2 {[%clk 0:01:21]}  Qe4 {[%clk 0:00:12]} 34. Qg7+ {[%clk 0:01:18]}  Kg5 {[%clk 0:00:13]} 35. Qxf7 {[%clk 0:01:14]}  Rf6 {[%clk 0:00:09]} 36. Qb3 {[%clk 0:01:05]}  Rf7 {[%clk 0:00:07]} 37. Qxf7 {[%clk 0:01:04]} 1-0


[Site "https://www.chess.com"]

[Event "Titled Tuesday Blitz May 30 Late 2023"]
[White "Szente Varga, Fruzsina"]
[Black "Castaneda, Jhon David"]
[WhiteFideId "712264"]
[BlackFideId "4405048"]
[WhiteElo "1994"]
[BlackElo "2086"]
[Result "0-1"]
[Round "06"]
[TimeControl "180+2"]
[Date "2023.05.31"]
[WhiteClock "0:02:08"]
[BlackClock "0:02:28"]

1. e4 {[%clk 0:03:00]}  c5 {[%clk 0:03:00]} 2. Nf3 {[%clk 0:02:58]}  a6 {[%clk 0:02:59]} 3. b3 {[%clk 0:02:49]}  g6 {[%clk 0:02:58]} 4. Bb2 {[%clk 0:02:49]}  Nf6 {[%clk 0:02:58]} 5. e5 {[%clk 0:02:49]}  Nd5 {[%clk 0:02:58]} 6. c4 {[%clk 0:02:42]}  Nc7 {[%clk 0:02:57]} 7. d4 {[%clk 0:02:31]}  cxd4 {[%clk 0:02:57]} 8. Nxd4 {[%clk 0:02:31]}  Bg7 {[%clk 0:02:56]} 9. Nf3 {[%clk 0:02:29]}  Nc6 {[%clk 0:02:49]} 10. Be2 {[%clk 0:02:28]}  O-O {[%clk 0:02:43]} 11. O-O {[%clk 0:02:28]}  d6 {[%clk 0:02:42]} 12. Qc2 {[%clk 0:02:13]}  Bf5 {[%clk 0:02:30]} 13. Bd3 {[%clk 0:02:10]}  Nb4 {[%clk 0:02:29]} 14. Qe2 {[%clk 0:02:08]}  Bxd3 {[%clk 0:02:28]} 0-1


[Site "https://www.chess.com"]

[Event "Titled Tuesday Blitz May 30 Late 2023"]
[White "Grinev, Valeriy"]
[Black "Kujawski, Adam"]
[WhiteFideId "14117517"]
[BlackFideId "1100920"]
[WhiteElo "2366"]
[BlackElo "2054"]
[Result "1-0"]
[Round "06"]
[TimeControl "180+2"]
[Date "2023.05.31"]
[WhiteClock "0:01:03"]
[BlackClock "0:00:05"]

1. Nf3 {[%clk 0:03:00]}  d5 {[%clk 0:02:55]} 2. c4 {[%clk 0:03:01]}  d4 {[%clk 0:02:54]} 3. d3 {[%clk 0:03:01]}  Nc6 {[%clk 0:02:54]} 4. g3 {[%clk 0:03:02]}  e5 {[%clk 0:02:53]} 5. Bg2 {[%clk 0:03:03]}  Bb4+ {[%clk 0:02:52]} 6. Bd2 {[%clk 0:03:02]}  a5 {[%clk 0:02:51]} 7. O-O {[%clk 0:03:03]}  Bxd2 {[%clk 0:02:51]} 8. Nbxd2 {[%clk 0:03:02]}  Nf6 {[%clk 0:02:48]} 9. a3 {[%clk 0:03:03]}  a4 {[%clk 0:02:46]} 10. Rb1 {[%clk 0:03:04]}  O-O {[%clk 0:02:45]} 11. b4 {[%clk 0:03:04]}  axb3 {[%clk 0:02:45]} 12. Rxb3 {[%clk 0:03:04]}  Nd7 {[%clk 0:02:45]} 13. Qb1 {[%clk 0:03:04]}  Nc5 {[%clk 0:02:42]} 14. Rb5 {[%clk 0:03:04]}  b6 {[%clk 0:02:39]} 15. Qa1 {[%clk 0:02:54]}  Bd7 {[%clk 0:02:32]} 16. Rfb1 {[%clk 0:02:51]}  Ra7 {[%clk 0:02:13]} 17. Rxc5 {[%clk 0:02:47]}  bxc5 {[%clk 0:02:12]} 18. Ne4 {[%clk 0:02:48]}  Qe7 {[%clk 0:02:03]} 19. Rb5 {[%clk 0:02:48]}  Rfa8 {[%clk 0:01:54]} 20. h4 {[%clk 0:02:43]}  Rxa3 {[%clk 0:01:54]} 21. Qb2 {[%clk 0:02:43]}  Ra2 {[%clk 0:01:46]} 22. Qc1 {[%clk 0:02:38]}  Ra1 {[%clk 0:01:42]} 23. Rb1 {[%clk 0:02:38]}  Rxb1 {[%clk 0:01:42]} 24. Qxb1 {[%clk 0:02:39]}  Nb4 {[%clk 0:01:35]} 25. Nxc5 {[%clk 0:02:23]}  Qxc5 {[%clk 0:01:31]} 26. Nxe5 {[%clk 0:02:24]}  Rd8 {[%clk 0:01:11]} 27. Nxd7 {[%clk 0:02:17]}  Rxd7 {[%clk 0:01:10]} 28. Qa1 {[%clk 0:02:17]}  Rd8 {[%clk 0:01:01]} 29. Bf3 {[%clk 0:02:17]}  g6 {[%clk 0:01:00]} 30. Qa4 {[%clk 0:02:15]}  h5 {[%clk 0:00:52]} 31. Kg2 {[%clk 0:02:12]}  Kg7 {[%clk 0:00:52]} 32. Qa1 {[%clk 0:02:04]}  Qd6 {[%clk 0:00:49]} 33. e3 {[%clk 0:02:03]}  Nxd3 {[%clk 0:00:42]} 34. Bd5 {[%clk 0:02:03]}  c5 {[%clk 0:00:37]} 35. exd4 {[%clk 0:02:03]}  Qf6 {[%clk 0:00:36]} 36. Qa7 {[%clk 0:01:55]}  Qxf2+ {[%clk 0:00:24]} 37. Kh3 {[%clk 0:01:54]}  cxd4 {[%clk 0:00:19]} 38. Be4 {[%clk 0:01:48]}  Ne5 {[%clk 0:00:15]} 39. Qe7 {[%clk 0:01:46]}  Qf1+ {[%clk 0:00:14]} 40. Bg2 {[%clk 0:01:44]}  Qf5+ {[%clk 0:00:13]} 41. Kh2 {[%clk 0:01:44]}  Ng4+ {[%clk 0:00:13]} 42. Kg1 {[%clk 0:01:40]}  Qf2+ {[%clk 0:00:12]} 43. Kh1 {[%clk 0:01:40]}  Qe1+ {[%clk 0:00:12]} 44. Qxe1 {[%clk 0:01:38]}  d3 {[%clk 0:00:13]} 45. Bd5 {[%clk 0:01:36]}  Rd7 {[%clk 0:00:10]} 46. Qc3+ {[%clk 0:01:36]}  Kh7 {[%clk 0:00:09]} 47. Kg2 {[%clk 0:01:36]}  Ne3+ {[%clk 0:00:07]} 48. Kf3 {[%clk 0:01:35]}  Nxd5 {[%clk 0:00:08]} 49. cxd5 {[%clk 0:01:29]}  Rxd5 {[%clk 0:00:08]} 50. Qc4 {[%clk 0:01:28]}  Rf5+ {[%clk 0:00:07]} 51. Ke3 {[%clk 0:01:27]}  Kg7 {[%clk 0:00:08]} 52. Qxd3 {[%clk 0:01:27]}  Kf6 {[%clk 0:00:08]} 53. Qd4+ {[%clk 0:01:25]}  Ke6 {[%clk 0:00:07]} 54. Qb6+ {[%clk 0:01:24]}  Ke5 {[%clk 0:00:08]} 55. Qc7+ {[%clk 0:01:23]}  Ke6 {[%clk 0:00:08]} 56. Qc8+ {[%clk 0:01:23]}  Ke5 {[%clk 0:00:08]} 57. Qe8+ {[%clk 0:01:23]}  Kf6 {[%clk 0:00:08]} 58. Qh8+ {[%clk 0:01:22]}  Ke6 {[%clk 0:00:08]} 59. Ke4 {[%clk 0:01:21]}  Ke7 {[%clk 0:00:08]} 60. Qa8 {[%clk 0:01:19]}  Ke6 {[%clk 0:00:08]} 61. Qe8+ {[%clk 0:01:19]}  Kf6 {[%clk 0:00:08]} 62. Qd8+ {[%clk 0:01:14]}  Ke6 {[%clk 0:00:08]} 63. Qb6+ {[%clk 0:01:11]}  Ke7 {[%clk 0:00:08]} 64. Qc6 {[%clk 0:01:10]}  Kf8 {[%clk 0:00:08]} 65. Qd6+ {[%clk 0:01:06]}  Kg7 {[%clk 0:00:08]} 66. Qd7 {[%clk 0:01:06]}  Kf6 {[%clk 0:00:08]} 67. Qc8 {[%clk 0:01:06]}  Ke7 {[%clk 0:00:08]} 68. Qxf5 {[%clk 0:01:06]}  gxf5+ {[%clk 0:00:08]} 69. Kxf5 {[%clk 0:01:06]}  f6 {[%clk 0:00:06]} 70. Kg6 {[%clk 0:01:06]}  Ke6 {[%clk 0:00:06]} 71. Kxh5 {[%clk 0:01:07]}  Kf5 {[%clk 0:00:06]} 72. Kh6 {[%clk 0:01:03]}  Kg4 {[%clk 0:00:06]} 73. Kg6 {[%clk 0:01:02]}  Kxg3 {[%clk 0:00:04]} 74. h5 {[%clk 0:01:03]}  f5 {[%clk 0:00:04]} 75. Kxf5 {[%clk 0:01:03]}  Kh4 {[%clk 0:00:05]} 76. Kg6 {[%clk 0:01:03]} 1-0


[Site "https://www.chess.com"]

[Event "Titled Tuesday Blitz May 30 Late 2023"]
[White "Smiechu"]
[Black "Adewumi, Tanitoluwa"]
[BlackFideId "30966396"]
[WhiteElo "2349"]
[BlackElo "2579"]
[Result "0-1"]
[Round "06"]
[TimeControl "180+2"]
[Date "2023.05.31"]
[WhiteClock "0:00:01"]
[BlackClock "0:00:05"]

1. e4 {[%clk 0:03:00]}  c5 {[%clk 0:02:52]} 2. Nf3 {[%clk 0:03:00]}  e6 {[%clk 0:02:52]} 3. d4 {[%clk 0:03:01]}  cxd4 {[%clk 0:02:52]} 4. Nxd4 {[%clk 0:03:01]}  Nc6 {[%clk 0:02:53]} 5. Nc3 {[%clk 0:03:02]}  Qc7 {[%clk 0:02:53]} 6. Be3 {[%clk 0:03:02]}  a6 {[%clk 0:02:43]} 7. Bd3 {[%clk 0:03:02]}  Nf6 {[%clk 0:02:31]} 8. O-O {[%clk 0:03:01]}  Nxd4 {[%clk 0:02:13]} 9. Bxd4 {[%clk 0:03:01]}  Bc5 {[%clk 0:02:14]} 10. Bxc5 {[%clk 0:03:01]}  Qxc5 {[%clk 0:02:15]} 11. Kh1 {[%clk 0:03:01]}  O-O {[%clk 0:02:10]} 12. f4 {[%clk 0:03:01]}  d6 {[%clk 0:02:06]} 13. Qf3 {[%clk 0:02:50]}  e5 {[%clk 0:02:03]} 14. fxe5 {[%clk 0:02:49]}  Qxe5 {[%clk 0:01:54]} 15. Nd5 {[%clk 0:02:45]}  Ng4 {[%clk 0:01:34]} 16. Qf4 {[%clk 0:02:18]}  Be6 {[%clk 0:01:30]} 17. Nc7 {[%clk 0:02:01]}  Rac8 {[%clk 0:01:17]} 18. Nxe6 {[%clk 0:02:01]}  Qxe6 {[%clk 0:01:13]} 19. c3 {[%clk 0:01:44]}  Ne5 {[%clk 0:00:45]} 20. Bc2 {[%clk 0:01:42]}  Qg6 {[%clk 0:00:40]} 21. Rad1 {[%clk 0:01:37]}  Nc4 {[%clk 0:00:37]} 22. Bb3 {[%clk 0:01:32]}  Ne5 {[%clk 0:00:35]} 23. Qf5 {[%clk 0:01:25]}  Qh6 {[%clk 0:00:31]} 24. Rd5 {[%clk 0:01:14]}  Rcd8 {[%clk 0:00:23]} 25. Rfd1 {[%clk 0:01:13]}  b5 {[%clk 0:00:18]} 26. a4 {[%clk 0:00:45]}  bxa4 {[%clk 0:00:17]} 27. Bxa4 {[%clk 0:00:46]}  Nc4 {[%clk 0:00:16]} 28. Bb3 {[%clk 0:00:14]}  Ne3 {[%clk 0:00:16]} 29. Qf2 {[%clk 0:00:11]}  Nxd1 {[%clk 0:00:14]} 30. Rxd1 {[%clk 0:00:10]}  Rb8 {[%clk 0:00:15]} 31. Bc4 {[%clk 0:00:06]}  Qh5 {[%clk 0:00:14]} 32. Be2 {[%clk 0:00:04]}  Rxb2 {[%clk 0:00:12]} 33. Re1 {[%clk 0:00:02]}  Qe5 {[%clk 0:00:10]} 34. Qe3 {[%clk 0:00:02]}  a5 {[%clk 0:00:10]} 35. Bc4 {[%clk 0:00:03]}  a4 {[%clk 0:00:09]} 36. Qc1 {[%clk 0:00:02]}  a3 {[%clk 0:00:09]} 37. h3 {[%clk 0:00:02]}  Qc5 {[%clk 0:00:06]} 38. Bd5 {[%clk 0:00:01]}  Qf2 {[%clk 0:00:05]} 39. Rf1 {[%clk 0:00:01]}  Qxg2# {[%clk 0:00:05]} 0-1


[Site "https://www.chess.com"]

[Event "Titled Tuesday Blitz May 30 Late 2023"]
[White "Campos, Maria Jose"]
[Black "Kavutskiy, Konstantin"]
[WhiteFideId "146803"]
[BlackFideId "2026384"]
[WhiteElo "2170"]
[BlackElo "2323"]
[Result "0-1"]
[Round "06"]
[TimeControl "180+2"]
[Date "2023.05.31"]
[WhiteClock "0:00:32"]
[BlackClock "0:00:08"]

1. c4 {[%clk 0:02:58]}  g6 {[%clk 0:02:58]} 2. g3 {[%clk 0:02:56]}  Bg7 {[%clk 0:02:57]} 3. Bg2 {[%clk 0:02:57]}  c5 {[%clk 0:02:57]} 4. Nc3 {[%clk 0:02:57]}  Nc6 {[%clk 0:02:57]} 5. Nf3 {[%clk 0:02:58]}  d6 {[%clk 0:02:57]} 6. O-O {[%clk 0:02:54]}  e6 {[%clk 0:02:56]} 7. d3 {[%clk 0:02:43]}  Nge7 {[%clk 0:02:56]} 8. Rb1 {[%clk 0:02:43]}  b6 {[%clk 0:02:55]} 9. a3 {[%clk 0:02:43]}  Bb7 {[%clk 0:02:54]} 10. Bg5 {[%clk 0:02:43]}  h6 {[%clk 0:02:52]} 11. Bd2 {[%clk 0:02:43]}  O-O {[%clk 0:02:50]} 12. b4 {[%clk 0:02:43]}  Qd7 {[%clk 0:02:46]} 13. b5 {[%clk 0:02:43]}  Ne5 {[%clk 0:02:37]} 14. Nxe5 {[%clk 0:02:41]}  dxe5 {[%clk 0:02:38]} 15. Bxb7 {[%clk 0:02:41]}  Qxb7 {[%clk 0:02:39]} 16. Qc1 {[%clk 0:02:38]}  Kh7 {[%clk 0:02:37]} 17. a4 {[%clk 0:02:35]}  f5 {[%clk 0:02:34]} 18. a5 {[%clk 0:02:35]}  g5 {[%clk 0:02:21]} 19. Ra1 {[%clk 0:02:26]}  Ng6 {[%clk 0:02:12]} 20. Qd1 {[%clk 0:02:25]}  Bf6 {[%clk 0:02:07]} 21. e3 {[%clk 0:02:20]}  g4 {[%clk 0:02:07]} 22. Qe2 {[%clk 0:02:19]}  Nh8 {[%clk 0:02:00]} 23. e4 {[%clk 0:02:14]}  Nf7 {[%clk 0:01:50]} 24. exf5 {[%clk 0:02:13]}  exf5 {[%clk 0:01:51]} 25. Nd5 {[%clk 0:02:13]}  Bg5 {[%clk 0:01:44]} 26. Bc3 {[%clk 0:02:11]}  Rae8 {[%clk 0:01:40]} 27. axb6 {[%clk 0:02:11]}  axb6 {[%clk 0:01:40]} 28. Ra6 {[%clk 0:02:11]}  Bd8 {[%clk 0:01:40]} 29. Rfa1 {[%clk 0:02:10]}  Kg8 {[%clk 0:01:16]} 30. Qd2 {[%clk 0:02:02]}  Ng5 {[%clk 0:01:07]} 31. Qb2 {[%clk 0:01:51]}  Rf7 {[%clk 0:01:04]} 32. Ra7 {[%clk 0:01:43]}  Qxa7 {[%clk 0:01:03]} 33. Rxa7 {[%clk 0:01:42]}  Rxa7 {[%clk 0:01:04]} 34. Kg2 {[%clk 0:01:41]}  Nf3 {[%clk 0:01:01]} 35. h3 {[%clk 0:01:40]}  h5 {[%clk 0:01:00]} 36. hxg4 {[%clk 0:01:40]}  hxg4 {[%clk 0:01:01]} 37. Qc1 {[%clk 0:01:39]}  Rh7 {[%clk 0:01:00]} 38. Qa3 {[%clk 0:01:28]}  Rh2+ {[%clk 0:00:36]} 39. Kf1 {[%clk 0:01:28]}  Rh1+ {[%clk 0:00:35]} 40. Ke2 {[%clk 0:01:28]}  Nd4+ {[%clk 0:00:32]} 41. Kd2 {[%clk 0:01:23]}  Bg5+ {[%clk 0:00:31]} 42. Ne3 {[%clk 0:01:21]}  f4 {[%clk 0:00:31]} 43. gxf4 {[%clk 0:01:04]}  exf4 {[%clk 0:00:32]} 44. Bxd4 {[%clk 0:01:03]}  cxd4 {[%clk 0:00:26]} 45. Qd6 {[%clk 0:00:52]}  fxe3+ {[%clk 0:00:23]} 46. fxe3 {[%clk 0:00:47]}  dxe3+ {[%clk 0:00:19]} 47. Kc2 {[%clk 0:00:44]}  Re7 {[%clk 0:00:09]} 48. Qd5+ {[%clk 0:00:42]}  Kf8 {[%clk 0:00:08]} 49. Qa8+ {[%clk 0:00:41]}  Kg7 {[%clk 0:00:07]} 50. Qxh1 {[%clk 0:00:40]}  e2 {[%clk 0:00:08]} 51. Qe1 {[%clk 0:00:37]}  Bh4 {[%clk 0:00:06]} 52. Qxh4 {[%clk 0:00:34]}  e1=Q {[%clk 0:00:07]} 53. Qxg4+ {[%clk 0:00:34]}  Kf7 {[%clk 0:00:07]} 54. Qf5+ {[%clk 0:00:35]}  Ke8 {[%clk 0:00:07]} 55. Qc8+ {[%clk 0:00:35]}  Kf7 {[%clk 0:00:08]} 56. Qf5+ {[%clk 0:00:35]}  Kg8 {[%clk 0:00:08]} 57. Qg5+ {[%clk 0:00:32]}  Rg7 {[%clk 0:00:08]} 58. Qd8+ {[%clk 0:00:33]}  Kh7 {[%clk 0:00:09]} 59. Qxb6 {[%clk 0:00:32]}  Rg2+ {[%clk 0:00:08]} 60. Kb3 {[%clk 0:00:31]}  Qb1+ {[%clk 0:00:08]} 61. Ka4 {[%clk 0:00:32]}  Ra2# {[%clk 0:00:08]} 0-1


[Site "https://www.chess.com"]